[Event "Live Chess"]
[Site "Chess.com"]
[Date "2023.09.16"]
[Round "-"]
[White "GabrielGGCF"]
[Black "KauaShelby015"]
[Result "0-1"]
[WhiteElo "1404"]
[BlackElo "1279"]
[TimeControl "900+5"]
[EndTime "7:14:54 PDT"]
[Termination "KauaShelby015 venceu por desistência"]

1. e4 {[%clk 0:15:03.3]} 1... c5 {[%clk 0:15:01.7]} 2. Nf3 {[%clk 0:15:06]} 2...
d6 {[%clk 0:15:03.8]} 3. c3 {[%clk 0:15:10.2]} 3... Nf6 {[%clk 0:15:06.5]} 4. e5
{[%clk 0:15:04.5]} 4... dxe5 {[%clk 0:15:07.5]} 5. Nxe5 {[%clk 0:15:08.9]} 5...
Nbd7 {[%clk 0:14:58.3]} 6. Nxd7 {[%clk 0:15:05.4]} 6... Bxd7 {[%clk 0:15:01.3]}
7. d4 {[%clk 0:15:08.3]} 7... e6 {[%clk 0:15:03.2]} 8. Bg5 {[%clk 0:15:08.4]}
8... Be7 {[%clk 0:15:05.6]} 9. Bc4 {[%clk 0:15:07.3]} 9... O-O {[%clk 0:15:06]}
10. O-O {[%clk 0:15:10.6]} 10... h6 {[%clk 0:15:07.5]} 11. Bh4 {[%clk
0:15:14.2]} 11... cxd4 {[%clk 0:15:01.3]} 12. cxd4 {[%clk 0:15:12.9]} 12... Rc8
{[%clk 0:15:04.3]} 13. Qd3 {[%clk 0:15:13.8]} 13... Nd5 {[%clk 0:14:49.7]} 14.
Bxe7 {[%clk 0:15:14.3]} 14... Nxe7 {[%clk 0:14:46.6]} 15. Bb3 {[%clk 0:15:16.8]}
15... a6 {[%clk 0:14:46.9]} 16. Bc2 {[%clk 0:15:20.3]} 16... Ng6 {[%clk
0:14:42.9]} 17. Nc3 {[%clk 0:15:22.7]} 17... Qb6 {[%clk 0:14:37.9]} 18. Rab1
{[%clk 0:15:14.7]} 18... Rfd8 {[%clk 0:14:30.1]} 19. h4 {[%clk 0:15:17.4]} 19...
f5 {[%clk 0:14:30.9]} 20. g4 {[%clk 0:15:14.2]} 20... Nxh4 {[%clk 0:14:29.1]}
21. gxf5 {[%clk 0:15:13]} 21... Qc6 {[%clk 0:14:28.9]} 22. Qg3 {[%clk
0:15:01.8]} 22... Nxf5 {[%clk 0:14:31.1]} 23. Bxf5 {[%clk 0:15:01.4]} 23... exf5
{[%clk 0:14:32.6]} 24. Kh2 {[%clk 0:15:04.1]} 24... Qc7 {[%clk 0:14:06.6]} 25.
Rg1 {[%clk 0:14:59.6]} 25... Rf8 {[%clk 0:14:07.7]} 26. Rg2 {[%clk 0:14:45]}
26... Qxg3+ {[%clk 0:14:01.1]} 27. Rxg3 {[%clk 0:14:48.1]} 27... f4 {[%clk
0:13:57.1]} 28. Rg6 {[%clk 0:14:42.8]} 28... Bf5 {[%clk 0:13:59]} 29. Nd5 {[%clk
0:14:39.6]} 29... Bxg6 {[%clk 0:13:50.8]} 30. Ne7+ {[%clk 0:14:40.6]} 30... Kf7
{[%clk 0:13:49.6]} 31. Nxg6 {[%clk 0:14:34.1]} 31... Kxg6 {[%clk 0:13:49.1]} 32.
Rg1+ {[%clk 0:14:38.4]} 32... Kf6 {[%clk 0:13:52.6]} 0-1

[Event "Live Chess"]
[Site "Chess.com"]
[Date "2023.09.16"]
[Round "-"]
[White "Mozart5501"]
[Black "lucasbezerraja"]
[Result "0-1"]
[WhiteElo "1786"]
[BlackElo "1796"]
[TimeControl "900+5"]
[EndTime "7:15:50 PDT"]
[Termination "lucasbezerraja venceu por desistência"]

1. e4 {[%clk 0:15:03.6]} 1... c5 {[%clk 0:15:03.7]} 2. Nf3 {[%clk 0:15:07.8]}
2... d6 {[%clk 0:15:07.7]} 3. d4 {[%clk 0:15:12.5]} 3... cxd4 {[%clk 0:15:12]}
4. Nxd4 {[%clk 0:15:17.2]} 4... Nf6 {[%clk 0:15:16.9]} 5. Nc3 {[%clk 0:15:21]}
5... g6 {[%clk 0:15:21.5]} 6. Be2 {[%clk 0:15:18.5]} 6... Bg7 {[%clk 0:15:24.4]}
7. Be3 {[%clk 0:15:22.6]} 7... O-O {[%clk 0:15:27.7]} 8. O-O {[%clk 0:15:25.8]}
8... Nc6 {[%clk 0:15:32.2]} 9. Nxc6 {[%clk 0:15:27.9]} 9... bxc6 {[%clk
0:15:35.8]} 10. f4 {[%clk 0:15:32]} 10... Bb7 {[%clk 0:15:34.5]} 11. Qd2 {[%clk
0:15:33.1]} 11... c5 {[%clk 0:15:26.5]} 12. Bd3 {[%clk 0:15:17.8]} 12... Ng4
{[%clk 0:15:22.3]} 13. h3 {[%clk 0:15:12.9]} 13... Nxe3 {[%clk 0:15:25.9]} 14.
Qxe3 {[%clk 0:15:17.4]} 14... Bd4 {[%clk 0:15:30.5]} 0-1

[Event "Live Chess"]
[Site "Chess.com"]
[Date "2023.09.16"]
[Round "-"]
[White "daniel-drummond"]
[Black "Ggavioli"]
[Result "1/2-1/2"]
[WhiteElo "1551"]
[BlackElo "1553"]
[TimeControl "900+5"]
[EndTime "7:15:55 PDT"]
[Termination "Empate por repetição"]

1. e4 {[%clk 0:15:03.3]} 1... c6 {[%clk 0:15:02.7]} 2. Nf3 {[%clk 0:15:07.7]}
2... d5 {[%clk 0:15:05.4]} 3. exd5 {[%clk 0:15:12.2]} 3... cxd5 {[%clk
0:15:08.5]} 4. d4 {[%clk 0:15:16.5]} 4... Nc6 {[%clk 0:15:12.5]} 5. Nc3 {[%clk
0:15:19.8]} 5... Bg4 {[%clk 0:15:16.3]} 6. Bb5 {[%clk 0:15:22.2]} 6... a6 {[%clk
0:15:17.8]} 7. Bxc6+ {[%clk 0:15:25.8]} 7... bxc6 {[%clk 0:15:22.7]} 8. O-O
{[%clk 0:15:29.3]} 8... e6 {[%clk 0:15:26.8]} 9. h3 {[%clk 0:15:31.9]} 9... Bxf3
{[%clk 0:15:30.3]} 10. Qxf3 {[%clk 0:15:35]} 10... Nf6 {[%clk 0:15:34.9]} 11.
Re1 {[%clk 0:15:35.5]} 11... Bb4 {[%clk 0:15:37.2]} 12. a3 {[%clk 0:15:37.9]}
12... Bxc3 {[%clk 0:15:41.5]} 13. Qxc3 {[%clk 0:15:40]} 13... O-O {[%clk
0:15:44]} 14. Bg5 {[%clk 0:15:42.1]} 14... Ne4 {[%clk 0:15:26.3]} 15. Rxe4
{[%clk 0:15:25.4]} 15... Qxg5 {[%clk 0:15:29.7]} 16. Rg4 {[%clk 0:15:27.6]}
16... Qf5 {[%clk 0:15:24.1]} 17. Qg3 {[%clk 0:15:18.7]} 17... g6 {[%clk
0:15:12.4]} 18. Rc1 {[%clk 0:15:07.6]} 18... Rab8 {[%clk 0:15:05.3]} 19. b3
{[%clk 0:15:06.4]} 19... a5 {[%clk 0:15:01.5]} 20. a4 {[%clk 0:15:08.8]} 20...
Rb4 {[%clk 0:14:57.2]} 21. Qd6 {[%clk 0:14:44.6]} 21... h5 {[%clk 0:14:38.8]}
22. Rf4 {[%clk 0:14:42.1]} 22... Qg5 {[%clk 0:14:33.5]} 23. h4 {[%clk
0:14:29.4]} 23... Qh6 {[%clk 0:14:33.1]} 24. Rf1 {[%clk 0:14:18.6]} 24... Rbb8
{[%clk 0:14:15.8]} 25. g3 {[%clk 0:14:15.6]} 25... Rbd8 {[%clk 0:14:09.2]} 26.
Qxc6 {[%clk 0:14:14.2]} 26... Rc8 {[%clk 0:14:09]} 27. Qb6 {[%clk 0:14:03.1]}
27... Rxc2 {[%clk 0:14:08.2]} 28. Qxa5 {[%clk 0:14:05.4]} 28... Rb2 {[%clk
0:14:09.5]} 29. b4 {[%clk 0:14:07]} 29... Rb8 {[%clk 0:14:11.7]} 30. b5 {[%clk
0:14:08.3]} 30... Qf8 {[%clk 0:14:12.9]} 31. Qc3 {[%clk 0:14:01]} 31... Ra2
{[%clk 0:14:10.2]} 32. Qb3 {[%clk 0:13:56.7]} 32... Ra3 {[%clk 0:14:09.1]} 33.
Qc2 {[%clk 0:13:53.1]} 33... Qb4 {[%clk 0:14:03.4]} 34. Qc7 {[%clk 0:13:49.5]}
34... Qf8 {[%clk 0:14:02.4]} 35. Rxf7 {[%clk 0:13:47.9]} 35... Qxf7 {[%clk
0:13:52.4]} 36. Qxb8+ {[%clk 0:13:49.9]} 36... Kg7 {[%clk 0:13:56.3]} 37. Qa8
{[%clk 0:13:43.6]} 37... Qc7 {[%clk 0:13:44.9]} 38. Qa6 {[%clk 0:13:41.5]} 38...
Rxg3+ {[%clk 0:13:21]} 39. fxg3 {[%clk 0:13:44.6]} 39... Qxg3+ {[%clk
0:13:24.6]} 40. Kh1 {[%clk 0:13:48.1]} 40... Qh3+ {[%clk 0:13:28.6]} 41. Kg1
{[%clk 0:13:51.5]} 41... Qg3+ {[%clk 0:13:32.7]} 42. Kh1 {[%clk 0:13:55.5]}
42... Qh3+ {[%clk 0:13:36.7]} 43. Kg1 {[%clk 0:14:00]} 43... Qg3+ {[%clk
0:13:40.5]} 1/2-1/2

[Event "Live Chess"]
[Site "Chess.com"]
[Date "2023.09.16"]
[Round "-"]
[White "z_anne_ari"]
[Black "fernanndodod"]
[Result "0-1"]
[WhiteElo "1263"]
[BlackElo "1954"]
[TimeControl "900+5"]
[EndTime "7:16:16 PDT"]
[Termination "fernanndodod venceu por desistência"]

1. e4 {[%clk 0:15:01.1]} 1... e5 {[%clk 0:15:04.1]} 2. Nf3 {[%clk 0:15:05.4]}
2... Nc6 {[%clk 0:15:07.2]} 3. Bb5 {[%clk 0:15:09.3]} 3... a6 {[%clk 0:15:10.8]}
4. Ba4 {[%clk 0:15:13.5]} 4... Nf6 {[%clk 0:15:14]} 5. O-O {[%clk 0:15:16.1]}
5... Be7 {[%clk 0:15:18.1]} 6. Re1 {[%clk 0:15:17]} 6... b5 {[%clk 0:15:21.3]}
7. Bb3 {[%clk 0:15:20.1]} 7... O-O {[%clk 0:15:25.6]} 8. c3 {[%clk 0:15:24.5]}
8... d6 {[%clk 0:15:29.9]} 9. d4 {[%clk 0:15:28.1]} 9... exd4 {[%clk 0:15:33.5]}
10. cxd4 {[%clk 0:15:32.3]} 10... Bg4 {[%clk 0:15:37.9]} 11. Nc3 {[%clk
0:15:32]} 11... Bxf3 {[%clk 0:15:39.1]} 12. Qxf3 {[%clk 0:15:34.2]} 12... Nxd4
{[%clk 0:15:41.4]} 13. Qg3 {[%clk 0:15:35.3]} 13... Nxb3 {[%clk 0:15:44.5]} 14.
axb3 {[%clk 0:15:38.9]} 14... d5 {[%clk 0:15:30.3]} 15. Bh6 {[%clk 0:15:42.2]}
15... g6 {[%clk 0:15:25.9]} 16. exd5 {[%clk 0:15:39.3]} 16... Nh5 {[%clk
0:15:20.6]} 17. Qe5 {[%clk 0:15:28.6]} 17... Bf6 {[%clk 0:15:21.5]} 18. Qe3
{[%clk 0:15:13.1]} 18... Ng7 {[%clk 0:15:21.9]} 19. Rad1 {[%clk 0:15:08]} 19...
Re8 {[%clk 0:15:23]} 20. Ne4 {[%clk 0:15:09.8]} 20... Bxb2 {[%clk 0:15:00.7]}
21. Bxg7 {[%clk 0:15:06.9]} 21... Bxg7 {[%clk 0:15:02.8]} 22. Qg3 {[%clk
0:15:03.1]} 22... Qd7 {[%clk 0:14:47.7]} 23. f3 {[%clk 0:15:02.2]} 23... Rad8
{[%clk 0:14:43.2]} 24. d6 {[%clk 0:14:57.5]} 24... cxd6 {[%clk 0:14:35.9]} 25.
Nxd6 {[%clk 0:15:01.3]} 25... Rxe1+ {[%clk 0:14:37.8]} 26. Qxe1 {[%clk
0:15:02.5]} 26... Qc7 {[%clk 0:14:33.2]} 27. Qg3 {[%clk 0:14:55.9]} 27... Qc5+
{[%clk 0:14:29.1]} 28. Kf1 {[%clk 0:14:51.2]} 28... Be5 {[%clk 0:14:32.5]} 29.
Nb7 {[%clk 0:14:42.1]} 29... Rxd1+ {[%clk 0:14:33.7]} 30. Ke2 {[%clk 0:14:42.2]}
30... Qc2+ {[%clk 0:14:36.7]} 31. Ke3 {[%clk 0:14:44.9]} 31... Bxg3 {[%clk
0:14:38.8]} 32. hxg3 {[%clk 0:14:48.3]} 0-1

[Event "Live Chess"]
[Site "Chess.com"]
[Date "2023.09.16"]
[Round "-"]
[White "gu1c0rrea"]
[Black "Edson_Zarnelli"]
[Result "0-1"]
[WhiteElo "811"]
[BlackElo "775"]
[TimeControl "900+5"]
[EndTime "7:16:45 PDT"]
[Termination "Edson_Zarnelli venceu por xeque-mate"]

1. e4 {[%clk 0:15:04.7]} 1... e5 {[%clk 0:15:03]} 2. Nf3 {[%clk 0:15:08.6]} 2...
Nc6 {[%clk 0:15:06.1]} 3. Bb5 {[%clk 0:15:10.9]} 3... Nd4 {[%clk 0:14:51.7]} 4.
Nxd4 {[%clk 0:15:06]} 4... exd4 {[%clk 0:14:53.6]} 5. c3 {[%clk 0:14:57.1]} 5...
dxc3 {[%clk 0:14:53.7]} 6. Nxc3 {[%clk 0:14:59.8]} 6... Bb4 {[%clk 0:14:48.6]}
7. Qf3 {[%clk 0:14:59]} 7... Bxc3 {[%clk 0:14:44.8]} 8. Qxc3 {[%clk 0:15:01.4]}
8... f6 {[%clk 0:14:41.5]} 9. e5 {[%clk 0:14:57.9]} 9... Nh6 {[%clk 0:14:29.2]}
10. exf6 {[%clk 0:14:57.8]} 10... Qxf6 {[%clk 0:14:30.6]} 11. Qe3+ {[%clk
0:14:58.8]} 11... Qe6 {[%clk 0:14:17.5]} 12. Bc4 {[%clk 0:14:49.7]} 12... Qxe3+
{[%clk 0:14:10.1]} 13. fxe3 {[%clk 0:14:54.6]} 13... Nf5 {[%clk 0:14:11]} 14. e4
{[%clk 0:14:51.6]} 14... Nd4 {[%clk 0:14:10.6]} 15. O-O {[%clk 0:14:49]} 15...
b5 {[%clk 0:14:14.2]} 16. Bf7+ {[%clk 0:14:49.7]} 16... Ke7 {[%clk 0:14:08.6]}
17. Bh5 {[%clk 0:14:48.4]} 17... Bb7 {[%clk 0:14:06.4]} 18. Rf7+ {[%clk
0:14:48.9]} 18... Kd6 {[%clk 0:14:05.6]} 19. Rxg7 {[%clk 0:14:49.9]} 19... Bxe4
{[%clk 0:14:05.1]} 20. Rg4 {[%clk 0:14:45]} 20... Ne2+ {[%clk 0:13:42.2]} 21.
Kf1 {[%clk 0:14:40.4]} 21... Nxc1 {[%clk 0:13:41.5]} 22. Rxc1 {[%clk 0:14:42.2]}
22... Bd3+ {[%clk 0:13:29.4]} 23. Kg1 {[%clk 0:14:43.6]} 23... Be2 {[%clk
0:13:30.4]} 24. Rd4+ {[%clk 0:14:42.9]} 24... Ke5 {[%clk 0:13:29.4]} 25. Rh4
{[%clk 0:14:41.1]} 25... Bxh5 {[%clk 0:13:28.4]} 26. Rxh5+ {[%clk 0:14:43.5]}
26... Kf4 {[%clk 0:13:19]} 27. Re1 {[%clk 0:14:42.3]} 27... Rae8 {[%clk
0:13:17.5]} 28. Rf1+ {[%clk 0:14:43.3]} 28... Kg4 {[%clk 0:13:18.5]} 29. Rh3
{[%clk 0:14:40.8]} 29... Ref8 {[%clk 0:13:16.6]} 30. Rg3+ {[%clk 0:14:40.7]}
30... Kh4 {[%clk 0:13:08.1]} 31. Rgf3 {[%clk 0:14:40.1]} 31... Rxf3 {[%clk
0:13:10.6]} 32. Rxf3 {[%clk 0:14:44.2]} 32... Kg5 {[%clk 0:13:09.7]} 33. g3
{[%clk 0:14:46.5]} 33... Kg4 {[%clk 0:13:11.5]} 34. Kg2 {[%clk 0:14:50.8]} 34...
Kg5 {[%clk 0:13:14.9]} 35. h4+ {[%clk 0:14:43.5]} 35... Kg6 {[%clk 0:13:12.9]}
36. g4 {[%clk 0:14:44.6]} 36... c5 {[%clk 0:13:12.6]} 37. Kg3 {[%clk 0:14:46.3]}
37... Kg7 {[%clk 0:13:11.9]} 38. Re3 {[%clk 0:14:40.5]} 38... Kf7 {[%clk
0:13:13.2]} 39. g5 {[%clk 0:14:39.2]} 39... Re8 {[%clk 0:13:15.9]} 40. Rxe8
{[%clk 0:14:38.2]} 40... Kxe8 {[%clk 0:13:19.8]} 41. Kf4 {[%clk 0:14:42.4]}
41... Kf7 {[%clk 0:13:23.5]} 42. Kf5 {[%clk 0:14:46.7]} 42... a5 {[%clk
0:13:20.6]} 43. Kg4 {[%clk 0:14:45.5]} 43... b4 {[%clk 0:13:23.3]} 44. h5 {[%clk
0:14:42.2]} 44... d6 {[%clk 0:13:21.2]} 45. h6 {[%clk 0:14:42.1]} 45... Kg6
{[%clk 0:13:23.5]} 46. Kf4 {[%clk 0:14:43.4]} 46... Kh5 {[%clk 0:13:27]} 47. Kf5
{[%clk 0:14:47.3]} 47... a4 {[%clk 0:13:28.3]} 48. Kf6 {[%clk 0:14:50.3]} 48...
d5 {[%clk 0:13:26.7]} 49. Kg7 {[%clk 0:14:54.8]} 49... a3 {[%clk 0:13:24.7]} 50.
Kxh7 {[%clk 0:14:59.7]} 50... axb2 {[%clk 0:13:27.8]} 51. Kg8 {[%clk 0:15:03]}
51... b1=Q {[%clk 0:13:31.1]} 52. h7 {[%clk 0:15:06.9]} 52... Qa1 {[%clk
0:13:29]} 53. g6 {[%clk 0:15:06.9]} 53... Kxg6 {[%clk 0:13:31.6]} 54. d3 {[%clk
0:15:05.1]} 54... Qg7# {[%clk 0:13:33.9]} 0-1

[Event "Live Chess"]
[Site "Chess.com"]
[Date "2023.09.16"]
[Round "-"]
[White "kslusk"]
[Black "maylso"]
[Result "0-1"]
[WhiteElo "846"]
[BlackElo "1422"]
[TimeControl "900+5"]
[EndTime "7:17:12 PDT"]
[Termination "maylso venceu por desistência"]

1. e4 {[%clk 0:15:03.7]} 1... e5 {[%clk 0:15:03.7]} 2. Nf3 {[%clk 0:15:07.7]}
2... Nc6 {[%clk 0:15:08.2]} 3. Bc4 {[%clk 0:15:11.5]} 3... Bc5 {[%clk
0:15:12.8]} 4. d3 {[%clk 0:15:10.9]} 4... Nf6 {[%clk 0:15:17.2]} 5. Bg5 {[%clk
0:15:14.2]} 5... O-O {[%clk 0:15:21.7]} 6. Nc3 {[%clk 0:15:18.6]} 6... h6 {[%clk
0:15:24.9]} 7. Bh4 {[%clk 0:15:22.2]} 7... d6 {[%clk 0:15:25.2]} 8. Nd5 {[%clk
0:15:25.6]} 8... g5 {[%clk 0:15:13.8]} 9. Nxf6+ {[%clk 0:15:24.7]} 9... Qxf6
{[%clk 0:15:16.9]} 10. Bg3 {[%clk 0:15:18.3]} 10... Bg4 {[%clk 0:15:20]} 11. h4
{[%clk 0:15:15.8]} 11... Nd4 {[%clk 0:15:12.7]} 12. hxg5 {[%clk 0:15:14.9]}
12... hxg5 {[%clk 0:15:14.3]} 13. O-O {[%clk 0:14:53.6]} 13... Nxf3+ {[%clk
0:15:11.2]} 14. gxf3 {[%clk 0:14:56.3]} 14... Bxf3 {[%clk 0:15:10]} 15. Qd2
{[%clk 0:14:53.9]} 15... Qh6 {[%clk 0:15:06.8]} 16. Bh2 {[%clk 0:14:41.3]} 16...
Qh5 {[%clk 0:14:57.3]} 0-1

[Event "Live Chess"]
[Site "Chess.com"]
[Date "2023.09.16"]
[Round "-"]
[White "Megruo988"]
[Black "RickBrasil"]
[Result "0-1"]
[WhiteElo "1710"]
[BlackElo "1876"]
[TimeControl "900+5"]
[EndTime "7:17:17 PDT"]
[Termination "RickBrasil venceu por xeque-mate"]

1. e4 {[%clk 0:15:01.5]} 1... c6 {[%clk 0:14:55.5]} 2. d4 {[%clk 0:15:02.5]}
2... d5 {[%clk 0:15:00.1]} 3. exd5 {[%clk 0:15:05.6]} 3... cxd5 {[%clk 0:15:05]}
4. Bd3 {[%clk 0:15:09.6]} 4... Nf6 {[%clk 0:15:08.1]} 5. Nf3 {[%clk 0:15:13.1]}
5... Bg4 {[%clk 0:15:11.6]} 6. O-O {[%clk 0:15:13.9]} 6... Nc6 {[%clk
0:15:15.6]} 7. c3 {[%clk 0:15:16.7]} 7... h6 {[%clk 0:15:11.5]} 8. Nbd2 {[%clk
0:15:19.4]} 8... e6 {[%clk 0:15:14.9]} 9. Qc2 {[%clk 0:15:18.9]} 9... Bxf3
{[%clk 0:15:13.5]} 10. Nxf3 {[%clk 0:15:21.9]} 10... Bd6 {[%clk 0:15:17.4]} 11.
h3 {[%clk 0:15:13.3]} 11... Bc7 {[%clk 0:15:16.9]} 12. Re1 {[%clk 0:14:40.9]}
12... O-O {[%clk 0:15:13.4]} 13. Bd2 {[%clk 0:14:24.1]} 13... Qd6 {[%clk
0:14:59.7]} 14. b4 {[%clk 0:14:18.5]} 14... a6 {[%clk 0:14:27.6]} 15. Re2 {[%clk
0:14:10.3]} 15... Rfe8 {[%clk 0:14:16.2]} 16. Rae1 {[%clk 0:14:12.6]} 16... Nd7
{[%clk 0:13:42.9]} 17. Qc1 {[%clk 0:13:50.7]} 17... Qf8 {[%clk 0:13:25.2]} 18.
a4 {[%clk 0:13:26.1]} 18... Rec8 {[%clk 0:13:02.5]} 19. Bf4 {[%clk 0:13:05.6]}
19... Bxf4 {[%clk 0:13:02.1]} 20. Qxf4 {[%clk 0:13:09.4]} 20... a5 {[%clk
0:12:59.2]} 21. b5 {[%clk 0:13:09.1]} 21... Na7 {[%clk 0:12:49.7]} 22. Rc1
{[%clk 0:13:09.3]} 22... Nb6 {[%clk 0:12:53.2]} 23. Ra2 {[%clk 0:12:16.2]} 23...
Rd8 {[%clk 0:12:07.3]} 24. Ne5 {[%clk 0:11:52.5]} 24... Nac8 {[%clk 0:11:05.3]}
25. Re1 {[%clk 0:11:04.3]} 25... Nd6 {[%clk 0:11:04.1]} 26. Re3 {[%clk
0:10:30.3]} 26... Rac8 {[%clk 0:10:58.4]} 27. Rg3 {[%clk 0:10:13.1]} 27... Kh8
{[%clk 0:09:00.8]} 28. Ng4 {[%clk 0:07:18.5]} 28... f6 {[%clk 0:07:57.2]} 29.
Bc2 {[%clk 0:03:57.6]} 29... Ndc4 {[%clk 0:07:02.1]} 30. Qf3 {[%clk 0:03:19.1]}
30... e5 {[%clk 0:07:04.8]} 31. dxe5 {[%clk 0:02:57.4]} 31... fxe5 {[%clk
0:07:08.8]} 32. Nxe5 {[%clk 0:02:25.8]} 32... Nxe5 {[%clk 0:06:54.8]} 33. Qe2
{[%clk 0:02:02.8]} 33... Re8 {[%clk 0:06:37.4]} 34. Qh5 {[%clk 0:01:48.5]} 34...
Nbc4 {[%clk 0:06:15]} 35. Ra1 {[%clk 0:01:21.8]} 35... Qf4 {[%clk 0:05:45.3]}
36. Re1 {[%clk 0:00:47.7]} 36... Nf3+ {[%clk 0:05:39.7]} 37. gxf3 {[%clk
0:00:42.9]} 37... Rxe1+ {[%clk 0:05:43.1]} 38. Kg2 {[%clk 0:00:46.9]} 38... Qc1
{[%clk 0:05:24.4]} 39. Qg6 {[%clk 0:00:24.2]} 39... Rg1+ {[%clk 0:05:26.5]} 40.
Kh2 {[%clk 0:00:28.3]} 40... Rh1+ {[%clk 0:05:31.4]} 41. Kg2 {[%clk 0:00:31.7]}
41... Qg1# {[%clk 0:05:36.3]} 0-1

[Event "Live Chess"]
[Site "Chess.com"]
[Date "2023.09.16"]
[Round "-"]
[White "Giulliajapa007"]
[Black "icarohm"]
[Result "1-0"]
[WhiteElo "1013"]
[BlackElo "1872"]
[TimeControl "900+5"]
[EndTime "7:17:18 PDT"]
[Termination "Giulliajapa007 venceu por xeque-mate"]

1. e4 {[%clk 0:14:59.9]} 1... e6 {[%clk 0:15:01.9]} 2. Nf3 {[%clk 0:15:02.2]}
2... d5 {[%clk 0:15:05.7]} 3. e5 {[%clk 0:15:04.4]} 3... c5 {[%clk 0:15:09.1]}
4. c3 {[%clk 0:15:01.7]} 4... Nc6 {[%clk 0:15:13]} 5. d4 {[%clk 0:15:05.3]} 5...
Qb6 {[%clk 0:15:16.1]} 6. Be3 {[%clk 0:15:00.4]} 6... cxd4 {[%clk 0:15:16.3]} 7.
cxd4 {[%clk 0:14:59.7]} 7... Qxb2 {[%clk 0:15:18.8]} 8. Nbd2 {[%clk 0:14:45.6]}
8... Bb4 {[%clk 0:15:16]} 9. Bb5 {[%clk 0:14:32.3]} 9... Ne7 {[%clk 0:15:10.9]}
10. O-O {[%clk 0:14:32.3]} 10... Bxd2 {[%clk 0:15:11.2]} 11. Bxd2 {[%clk
0:14:30.3]} 11... Qxb5 {[%clk 0:15:13.5]} 12. Ng5 {[%clk 0:14:11.7]} 12... O-O
{[%clk 0:15:15.2]} 13. Qh5 {[%clk 0:14:03.4]} 13... h6 {[%clk 0:15:18.9]} 14.
Nf3 {[%clk 0:13:59.6]} 14... Nf5 {[%clk 0:15:15.9]} 15. Qg4 {[%clk 0:13:51.2]}
15... g6 {[%clk 0:14:56.9]} 16. Nh4 {[%clk 0:13:43.7]} 16... Nxh4 {[%clk
0:14:50.2]} 17. Qxh4 {[%clk 0:13:44.1]} 17... Nxd4 {[%clk 0:14:46]} 18. Qxd4
{[%clk 0:13:16.7]} 18... h5 {[%clk 0:14:38.5]} 19. Bh6 {[%clk 0:13:10.8]} 19...
Rd8 {[%clk 0:14:37.5]} 20. Qf4 {[%clk 0:13:12.6]} 20... Kh7 {[%clk 0:14:25.1]}
21. Qf6 {[%clk 0:12:45.5]} 21... Kxh6 {[%clk 0:14:26.4]} 22. Qxd8 {[%clk
0:12:48.6]} 22... b6 {[%clk 0:14:20]} 23. Qh8+ {[%clk 0:12:48.5]} 23... Kg5
{[%clk 0:14:20.2]} 24. Qf6+ {[%clk 0:12:51.7]} 24... Kg4 {[%clk 0:14:20.4]} 25.
h3# {[%clk 0:12:52.5]} 1-0

[Event "Live Chess"]
[Site "Chess.com"]
[Date "2023.09.16"]
[Round "-"]
[White "lucasportolelis"]
[Black "Abofado"]
[Result "1-0"]
[WhiteElo "1679"]
[BlackElo "582"]
[TimeControl "900+5"]
[EndTime "7:17:30 PDT"]
[Termination "lucasportolelis venceu por xeque-mate"]

1. e4 {[%clk 0:15:03.9]} 1... e5 {[%clk 0:15:04.9]} 2. Nf3 {[%clk 0:15:07.6]}
2... Nf6 {[%clk 0:15:08.1]} 3. Nc3 {[%clk 0:15:09.8]} 3... d5 {[%clk 0:15:11.1]}
4. exd5 {[%clk 0:15:03.7]} 4... c6 {[%clk 0:15:12.2]} 5. Nxe5 {[%clk 0:14:46]}
5... cxd5 {[%clk 0:14:58.6]} 6. Bb5+ {[%clk 0:14:45.4]} 6... Nc6 {[%clk
0:15:01]} 7. Nxc6 {[%clk 0:14:47.3]} 7... bxc6 {[%clk 0:15:04.7]} 8. Bxc6+
{[%clk 0:14:51.2]} 8... Bd7 {[%clk 0:15:08.9]} 9. Bxa8 {[%clk 0:14:54.8]} 9...
Qxa8 {[%clk 0:15:12.5]} 10. d4 {[%clk 0:14:54.9]} 10... Ng4 {[%clk 0:15:13]} 11.
Qe2+ {[%clk 0:14:51.5]} 11... Be6 {[%clk 0:15:13.9]} 12. h3 {[%clk 0:14:41.7]}
12... Nh6 {[%clk 0:15:10.8]} 13. O-O {[%clk 0:14:44.2]} 13... Qb8 {[%clk
0:15:05.9]} 14. Nxd5 {[%clk 0:14:41.1]} 14... Nf5 {[%clk 0:14:53.1]} 15. Bf4
{[%clk 0:14:25.7]} 15... Qxb2 {[%clk 0:14:53.9]} 16. Rab1 {[%clk 0:14:23.6]}
16... Qxa2 {[%clk 0:14:53.2]} 17. Qb5+ {[%clk 0:14:15.4]} 17... Bd7 {[%clk
0:14:55.4]} 18. Rfe1+ {[%clk 0:14:10.8]} 18... Be7 {[%clk 0:14:54.7]} 19. Qb8+
{[%clk 0:14:11.5]} 19... Bc8 {[%clk 0:14:26]} 20. Qxc8# {[%clk 0:14:15.1]} 1-0

[Event "Live Chess"]
[Site "Chess.com"]
[Date "2023.09.16"]
[Round "-"]
[White "zezemito921"]
[Black "andre2873"]
[Result "1-0"]
[WhiteElo "920"]
[BlackElo "630"]
[TimeControl "900+5"]
[EndTime "7:17:35 PDT"]
[Termination "zezemito921 venceu por desistência"]

1. e4 {[%clk 0:15:02.5]} 1... e5 {[%clk 0:15:03.2]} 2. Bc4 {[%clk 0:15:04.8]}
2... Nf6 {[%clk 0:14:39.5]} 3. Nf3 {[%clk 0:15:06.6]} 3... Nc6 {[%clk
0:14:37.3]} 4. d3 {[%clk 0:15:09.3]} 4... Bc5 {[%clk 0:14:32.5]} 5. O-O {[%clk
0:15:11.1]} 5... d6 {[%clk 0:14:32]} 6. Bg5 {[%clk 0:15:03.7]} 6... h6 {[%clk
0:14:23.2]} 7. Bxf6 {[%clk 0:15:06.3]} 7... Qxf6 {[%clk 0:14:24.8]} 8. c3 {[%clk
0:15:07.7]} 8... a6 {[%clk 0:13:50.1]} 9. d4 {[%clk 0:15:09.8]} 9... Ba7 {[%clk
0:13:47.7]} 10. d5 {[%clk 0:15:05.3]} 10... Ne7 {[%clk 0:13:46.1]} 11. Na3
{[%clk 0:14:48.4]} 11... b5 {[%clk 0:13:47]} 12. Be2 {[%clk 0:14:45.5]} 12... c6
{[%clk 0:13:38.9]} 13. c4 {[%clk 0:14:38.7]} 13... c5 {[%clk 0:13:31.3]} 14.
cxb5 {[%clk 0:14:37.6]} 14... axb5 {[%clk 0:13:21.7]} 15. Nxb5 {[%clk
0:14:40.3]} 15... Bb6 {[%clk 0:13:14.7]} 16. a4 {[%clk 0:14:19.7]} 16... Ba6
{[%clk 0:13:17.7]} 17. Nc3 {[%clk 0:14:06]} 17... Bb5 {[%clk 0:13:20.2]} 18.
Nxb5 {[%clk 0:14:03.7]} 18... O-O {[%clk 0:13:20.8]} 19. b3 {[%clk 0:13:40.4]}
19... g5 {[%clk 0:13:01]} 20. Qd2 {[%clk 0:12:53.6]} 20... g4 {[%clk 0:12:59.4]}
21. Ne1 {[%clk 0:12:49.7]} 21... h5 {[%clk 0:12:59.9]} 22. b4 {[%clk 0:12:52.4]}
22... cxb4 {[%clk 0:13:00.2]} 23. Qxb4 {[%clk 0:12:55.2]} 23... h4 {[%clk
0:12:19.5]} 24. Nxd6 {[%clk 0:12:54.5]} 24... g3 {[%clk 0:12:16.9]} 25. hxg3
{[%clk 0:12:30.6]} 25... hxg3 {[%clk 0:12:17.8]} 26. Qxb6 {[%clk 0:12:30]} 26...
gxf2+ {[%clk 0:12:20.3]} 27. Rxf2 {[%clk 0:12:31.5]} 27... Qh4 {[%clk
0:12:22.7]} 28. Rc1 {[%clk 0:12:04.8]} 28... Rab8 {[%clk 0:12:17.3]} 29. Qc7
{[%clk 0:12:05.9]} 29... Rbc8 {[%clk 0:12:21.7]} 30. Qxe7 {[%clk 0:11:53.7]}
30... Qxe7 {[%clk 0:12:21.7]} 31. Nxc8 {[%clk 0:11:43.6]} 31... Rxc8 {[%clk
0:12:24.2]} 32. Rxc8+ {[%clk 0:11:45.4]} 32... Kg7 {[%clk 0:12:28.8]} 33. Nf3
{[%clk 0:11:40.4]} 33... f6 {[%clk 0:12:30.4]} 34. Nh4 {[%clk 0:11:33.1]} 34...
Qf7 {[%clk 0:12:32.9]} 35. d6 {[%clk 0:11:27]} 35... f5 {[%clk 0:12:34.5]} 1-0